[Event "FIDE Women World Blitz 2021"]
[Site "Warsaw"]
[Date "2021.12.30"]
[Round "11.11"]
[White "Efroimski, Marsel"]
[Black "Bodnaruk, Anastasia"]
[Result "0-1"]
[ECO "B50"]
[WhiteElo "2419"]
[BlackElo "2396"]
[Annotator "NA"]
[PlyCount "120"]
[EventDate "2021.12.29"]
[EventType "swiss"]
[EventCountry "POL"]
[Tiebreak "Cut1 Buchholz"]
[SourceTitle "playchess.com"]
[Source "ChessBase"]
[SourceQuality "1"]
[TimeControl "180+2"]

1. e4 {[%emt 0:00:00]} c5 {[%emt 0:00:00]} 2. Nf3 {[%emt 0:00:01]} d6 {[%emt 0:
00:01]} 3. Nc3 {[%emt 0:00:01]} a6 {[%emt 0:00:10]} 4. e5 {[%emt 0:00:01]} dxe5
{[%emt 0:00:06]} 5. Nxe5 {[%emt 0:00:01]} Nf6 {[%emt 0:00:01]} 6. g3 {[%emt 0:
00:07]} e6 {[%emt 0:00:06]} 7. Bg2 {[%emt 0:00:02]} Be7 {[%emt 0:00:15]} 8. a4
{[%emt 0:00:03]} O-O {[%emt 0:00:07]} 9. a5 {[%emt 0:00:01]} Nbd7 {[%emt 0:00:
08]} 10. Nc4 {[%emt 0:00:02]} Qc7 {[%emt 0:00:25]} 11. d3 {[%emt 0:00:01]} h6 {
[%emt 0:00:12]} 12. Qe2 {[%emt 0:00:03]} e5 {[%emt 0:00:08]} 13. O-O {[%emt 0:
00:17]} Re8 {[%emt 0:00:01]} 14. f4 {[%emt 0:00:15]} Bd6 {[%emt 0:00:19]} 15.
f5 {[%emt 0:00:29]} Rb8 {[%emt 0:00:10]} 16. Ne4 {[%emt 0:00:48]} Nxe4 {
[%emt 0:00:13]} 17. Bxe4 {[%emt 0:00:01]} Nf6 {[%emt 0:00:01]} 18. Nb6 {
[%emt 0:00:01]} Bd7 {[%emt 0:00:08]} 19. Nxd7 {[%emt 0:00:17]} Qxd7 {[%emt 0:
00:04]} 20. Bd2 {[%emt 0:00:03]} c4 {[%emt 0:00:15]} 21. Bc3 {[%emt 0:00:12]}
Bc5+ {[%emt 0:00:08]} 22. Kh1 {[%emt 0:00:02]} cxd3 {[%emt 0:00:02]} 23. Qxd3 {
[%emt 0:00:08]} Qc7 {[%emt 0:00:06]} 24. Bg2 {[%emt 0:00:07]} Rbd8 {[%emt 0:00:
02]} 25. Qc4 {[%emt 0:00:01]} Qe7 {[%emt 0:00:08]} 26. Rae1 {[%emt 0:00:06]}
Bd4 {[%emt 0:00:10]} 27. Bxd4 {[%emt 0:00:15]} Rxd4 {[%emt 0:00:01]} 28. Qxd4
exd4 {[%emt 0:00:00]} 29. Rxe7 Rxe7 30. Rd1 {[%emt 0:00:04]} Rd7 {[%emt 0:00:
15]} 31. Rd3 {[%emt 0:00:01]} h5 {[%emt 0:00:08]} 32. h3 {[%emt 0:00:04]} Rc7 {
[%emt 0:00:06]} 33. Rxd4 {[%emt 0:00:03]} Rxc2 {[%emt 0:00:02]} 34. Rb4 {
[%emt 0:00:01]} Rc5 {[%emt 0:00:02]} 35. Rxb7 {[%emt 0:00:04]} Rxa5 {[%emt 0:
00:01]} 36. Ra7 {[%emt 0:00:04]} Rb5 {[%emt 0:00:06]} 37. Rxa6 {[%emt 0:00:03]}
Rxb2 {[%emt 0:00:00]} 38. Ra8+ {[%emt 0:00:04]} Kh7 {[%emt 0:00:01]} 39. Ra7 {
[%emt 0:00:01]} Rf2 {[%emt 0:00:02]} 40. Rxf7 {[%emt 0:00:04]} Rxf5 {[%emt 0:
00:03]} 41. Be4 {[%emt 0:00:03]} Nxe4 {[%emt 0:00:01]} 42. Re7 {[%emt 0:00:04]}
Nxg3+ {[%emt 0:00:04]} 43. Kg2 {[%emt 0:00:01]} h4 {[%emt 0:00:00]} 44. Rc7 {
[%emt 0:00:01]} Rb5 {[%emt 0:00:02]} 45. Rc4 {[%emt 0:00:02]} g5 {[%emt 0:00:
02]} 46. Rc7+ {[%emt 0:00:01]} Kh6 {[%emt 0:00:01]} 47. Kf3 {[%emt 0:00:02]}
Rf5+ {[%emt 0:00:01]} 48. Kg2 {[%emt 0:00:01]} Ne2 {[%emt 0:00:02]} 49. Rc8 {
[%emt 0:00:02]} Nf4+ {[%emt 0:00:02]} 50. Kh2 {[%emt 0:00:01]} Re5 {[%emt 0:00:
00]} 51. Rh8+ {[%emt 0:00:02]} Kg7 {[%emt 0:00:01]} 52. Ra8 {[%emt 0:00:02]}
Re2+ {[%emt 0:00:01]} 53. Kg1 {[%emt 0:00:02]} Nxh3+ {[%emt 0:00:01]} 54. Kf1 {
[%emt 0:00:00]} Rf2+ {[%emt 0:00:01]} 55. Ke1 {[%emt 0:00:01]} Rf5 {[%emt 0:00:
02]} 56. Ra3 {[%emt 0:00:02]} Nf4 {[%emt 0:00:01]} 57. Kf1 {[%emt 0:00:02]} g4
{[%emt 0:00:01]} 58. Kg1 {[%emt 0:00:01]} g3 {[%emt 0:00:02]} 59. Ra4 {[%emt 0:
00:05]} h3 {[%emt 0:00:02]} 60. Ra3 {[%emt 0:00:02]} Ne2+ {[%emt 0:00:01]} 0-1

[Event "FIDE Women World Blitz 2021"]
[Site "Warsaw"]
[Date "2021.12.30"]
[Round "11.11"]
[White "Brambilla, Renee Blandy T."]
[Black "Katkov, Michelle"]
[Result "0-1"]
[ECO "E12"]
[WhiteElo "1651"]
[BlackElo "1651"]
[Annotator "NA"]
[PlyCount "122"]
[EventDate "2021.12.29"]
[EventType "swiss"]
[EventCountry "POL"]
[Tiebreak "Cut1 Buchholz"]
[SourceTitle "playchess.com"]
[Source "ChessBase"]
[SourceQuality "1"]
[TimeControl "180+2"]

1. d4 {[%emt 0:00:01]} Nf6 {[%emt 0:00:01]} 2. c4 {[%emt 0:00:01]} e6 {[%emt 0:
00:01]} 3. Nf3 {[%emt 0:00:01]} b6 {[%emt 0:00:01]} 4. Bg5 {[%emt 0:00:04]} Bb7
{[%emt 0:00:10]} 5. e3 {[%emt 0:00:04]} h6 {[%emt 0:00:03]} 6. Bh4 {[%emt 0:00:
01]} Be7 {[%emt 0:00:04]} 7. Be2 {[%emt 0:00:02]} O-O {[%emt 0:00:01]} 8. O-O {
[%emt 0:00:02]} c5 {[%emt 0:00:07]} 9. Nc3 {[%emt 0:00:16]} cxd4 {[%emt 0:00:
17]} 10. Nxd4 {[%emt 0:00:02]} Nc6 {[%emt 0:00:13]} 11. Bf3 {[%emt 0:00:09]}
Qb8 {[%emt 0:00:11]} 12. Nxc6 {[%emt 0:00:03]} Bxc6 {[%emt 0:00:07]} 13. Bxc6 {
[%emt 0:00:02]} dxc6 {[%emt 0:00:01]} 14. Qc2 {[%emt 0:00:05]} Rd8 {[%emt 0:00:
06]} 15. Rad1 {[%emt 0:00:02]} Qb7 {[%emt 0:00:04]} 16. Bg3 {[%emt 0:00:13]} a5
{[%emt 0:00:13]} 17. b3 {[%emt 0:00:03]} b5 {[%emt 0:00:06]} 18. Ne2 {[%emt 0:
00:11]} a4 {[%emt 0:00:13]} 19. Rxd8+ {[%emt 0:00:10]} Bxd8 {[%emt 0:00:10]}
20. Rd1 {[%emt 0:00:04]} Be7 {[%emt 0:00:07]} 21. h3 {[%emt 0:00:07]} axb3 {
[%emt 0:00:05]} 22. axb3 {[%emt 0:00:02]} Qa6 {[%emt 0:00:04]} 23. Nd4 {
[%emt 0:00:05]} bxc4 {[%emt 0:00:05]} 24. Qxc4 {[%emt 0:00:07]} c5 {[%emt 0:00:
16]} 25. Ne2 {[%emt 0:00:41]} Qxc4 {[%emt 0:00:08]} 26. bxc4 {[%emt 0:00:01]}
Ra4 {[%emt 0:00:01]} 27. Rc1 {[%emt 0:00:13]} Ne4 {[%emt 0:00:02]} 28. Nc3 {
[%emt 0:00:12]} Rxc4 {[%emt 0:00:06]} 29. Be5 {[%emt 0:00:38]} f6 {[%emt 0:00:
10]} 30. Ra1 {[%emt 0:00:06]} Nxc3 {[%emt 0:00:16]} 31. Ra8+ {[%emt 0:00:02]}
Kf7 {[%emt 0:00:02]} 32. Bf4 {[%emt 0:00:05]} Ne2+ {[%emt 0:00:01]} 33. Kh2 {
[%emt 0:00:02]} Nxf4 {[%emt 0:00:02]} 34. exf4 {[%emt 0:00:02]} Rxf4 {[%emt 0:
00:01]} 35. Kg3 {[%emt 0:00:01]} Rd4 {[%emt 0:00:02]} 36. Rc8 {[%emt 0:00:03]}
c4 {[%emt 0:00:01]} 37. Kf3 {[%emt 0:00:02]} g5 {[%emt 0:00:06]} 38. Ke3 {
[%emt 0:00:01]} e5 {[%emt 0:00:07]} 39. g3 {[%emt 0:00:02]} f5 {[%emt 0:00:01]}
40. f3 {[%emt 0:00:03]} Rd3+ {[%emt 0:00:03]} 41. Ke2 {[%emt 0:00:02]} Rc3 {
[%emt 0:00:03]} 42. Rc7 {[%emt 0:00:01]} Ke6 {[%emt 0:00:02]} 43. Kd2 {[%emt 0:
00:03]} Rxf3 {[%emt 0:00:07]} 44. Rxc4 {[%emt 0:00:02]} Rxg3 {[%emt 0:00:01]}
45. Rc6+ {[%emt 0:00:03]} Bd6 {[%emt 0:00:01]} 46. Ke2 {[%emt 0:00:05]} e4 {
[%emt 0:00:01]} 47. Kf2 {[%emt 0:00:02]} Rxh3 {[%emt 0:00:02]} 48. Kg2 {
[%emt 0:00:02]} Rg3+ {[%emt 0:00:01]} 49. Kf2 {[%emt 0:00:02]} f4 {[%emt 0:00:
01]} 50. Ke2 {[%emt 0:00:04]} Kd5 {[%emt 0:00:07]} 51. Ra6 {[%emt 0:00:03]}
Rg2+ {[%emt 0:00:02]} 52. Kd1 {[%emt 0:00:02]} f3 {[%emt 0:00:02]} 53. Ra5+ {
[%emt 0:00:01]} Bc5 {[%emt 0:00:02]} 54. Ke1 {[%emt 0:00:02]} e3 {[%emt 0:00:
01]} 55. Kf1 {[%emt 0:00:02]} e2+ {[%emt 0:00:03]} 56. Ke1 {[%emt 0:00:03]}
Rg1+ {[%emt 0:00:01]} 57. Kd2 {[%emt 0:00:01]} Rd1+ {[%emt 0:00:02]} 58. Kc2 {
[%emt 0:00:03]} e1=Q {[%emt 0:00:06]} 59. Rxc5+ {[%emt 0:00:02]} Kxc5 {[%emt 0:
00:02]} 60. Kb2 {[%emt 0:00:03]} Qd2+ {[%emt 0:00:03]} 61. Kb3 {[%emt 0:00:02]}
Rb1+ {[%emt 0:00:02]} 0-1

[Event "FIDE Women World Blitz 2021"]
[Site "Warsaw"]
[Date "2021.12.30"]
[Round "11.12"]
[White "Gaponenko, Inna"]
[Black "Lagno, Kateryna"]
[Result "0-1"]
[ECO "C68"]
[WhiteElo "2339"]
[BlackElo "2550"]
[Annotator "ChessBase"]
[PlyCount "87"]
[EventDate "2021.12.29"]
[EventType "swiss"]
[EventCountry "POL"]
[Tiebreak "Cut1 Buchholz"]
[SourceTitle "playchess.com"]
[Source "ChessBase"]
[SourceQuality "1"]
[TimeControl "180+2"]

1. e4 {[%emt 0:00:01]} e5 {[%emt 0:00:00]} 2. Nf3 {[%emt 0:00:02]} Nc6 {
[%emt 0:00:01]} 3. Bb5 {[%emt 0:00:01]} a6 {[%emt 0:00:01]} 4. Bxc6 {[%emt 0:
00:01]} dxc6 {[%emt 0:00:01]} 5. O-O {[%emt 0:00:08]} Qf6 {[%emt 0:00:13]} 6.
d4 {[%emt 0:00:02]} exd4 {[%emt 0:00:01]} 7. Bg5 {[%emt 0:00:01]} Qd6 {[%emt 0:
00:00]} 8. Nxd4 {[%emt 0:00:04]} Be7 {[%emt 0:00:05]} 9. Bxe7 {[%emt 0:00:03]}
Nxe7 {[%emt 0:00:02]} 10. Nc3 {[%emt 0:00:03]} Bd7 {[%emt 0:00:06]} 11. Qd2 {
[%emt 0:00:18]} c5 {[%emt 0:00:06]} 12. Nb3 {[%emt 0:00:04]} Qxd2 {[%emt 0:00:
02]} 13. Nxd2 {[%emt 0:00:02]} f6 {[%emt 0:00:32]} 14. Nb3 {[%emt 0:01:18]} b6
{[%emt 0:00:03]} 15. Rad1 {[%emt 0:00:01]} O-O-O {[%emt 0:00:08]} 16. Nd5 {
[%emt 0:00:14]} Nxd5 {[%emt 0:00:03]} 17. Rxd5 {[%emt 0:00:49]} Bc6 {[%emt 0:
00:02]} 18. Rxd8+ {[%emt 0:00:02]} Rxd8 {[%emt 0:00:01]} 19. f3 {[%emt 0:00:01]
} a5 {[%emt 0:00:05]} 20. Rf2 {[%emt 0:00:14]} a4 {[%emt 0:00:01]} 21. Nd2 {
[%emt 0:00:01]} b5 {[%emt 0:00:10]} 22. Kf1 {[%emt 0:00:06]} Kb7 {[%emt 0:00:
00]} 23. Ke2 {[%emt 0:00:03]} Kb6 {[%emt 0:00:05]} 24. c4 {[%emt 0:00:05]} Rd4
{[%emt 0:00:11]} 25. b3 {[%emt 0:00:03]} Bd7 {[%emt 0:00:26]} 26. Ke3 {[%emt 0:
00:01]} Be6 {[%emt 0:00:12]} 27. cxb5 {[%emt 0:00:01]} Kxb5 {[%emt 0:00:04]}
28. bxa4+ {[%emt 0:00:01]} Rxa4 {[%emt 0:00:01]} 29. Nb1 {[%emt 0:00:03]} Kc6 {
[%emt 0:00:26]} 30. Nc3 {[%emt 0:00:01]} Ra3 {[%emt 0:00:00]} 31. Kd3 {[%emt 0:
00:01]} Kd6 {[%emt 0:00:03]} 32. Rb2 {[%emt 0:00:01]} Bc8 {[%emt 0:00:02]} 33.
g3 {[%emt 0:00:02]} Ba6+ {[%emt 0:00:01]} 34. Kd2 {[%emt 0:00:01]} Ke5 {
[%emt 0:00:02]} 35. Rb8 {[%emt 0:00:02]} Bc4 {[%emt 0:00:04]} 36. Re8+ {
[%emt 0:00:05]} Kd6 {[%emt 0:00:00]} 37. Rd8+ {[%emt 0:00:05]} Ke7 {[%emt 0:00:
01]} 38. Rc8 {[%emt 0:00:03]} Kd7 {[%emt 0:00:01]} 39. Rh8 {[%emt 0:00:02]} h6
{[%emt 0:00:00]} 40. Rh7 {[%emt 0:00:02]} Bxa2 {[%emt 0:00:12]} 41. Rxg7+ {
[%emt 0:00:01]} Ke6 {[%emt 0:00:04]} 42. Nb5 {[%emt 0:00:03]} Rxf3 {[%emt 0:00:
03]} 43. Nxc7+ {[%emt 0:00:02]} Ke5 {[%emt 0:00:06]} 44. Na6 {[%emt 0:00:03]}
0-1

[Event "FIDE Women World Blitz 2021"]
[Site "Warsaw"]
[Date "2021.12.30"]
[Round "11.12"]
[White "Da Silva, Cibele Florencio"]
[Black "Heredia Serrano, Carla"]
[Result "1/2-1/2"]
[ECO "B27"]
[WhiteElo "1405"]
[BlackElo "2138"]
[Annotator "NA"]
[PlyCount "147"]
[EventDate "2021.12.29"]
[EventType "swiss"]
[EventCountry "POL"]
[Tiebreak "Cut1 Buchholz"]
[SourceTitle "playchess.com"]
[Source "ChessBase"]
[SourceQuality "1"]
[TimeControl "180+2"]

1. e4 {[%emt 0:00:02]} c5 {[%emt 0:00:02]} 2. Nc3 {[%emt 0:00:02]} g6 {[%emt 0:
00:02]} 3. Nf3 {[%emt 0:00:01]} Bg7 {[%emt 0:00:01]} 4. Bc4 {[%emt 0:00:04]} e6
{[%emt 0:00:01]} 5. Rb1 {[%emt 0:00:03]} Ne7 {[%emt 0:00:08]} 6. d3 {[%emt 0:
00:01]} O-O {[%emt 0:00:06]} 7. Be3 {[%emt 0:00:04]} d5 {[%emt 0:00:05]} 8.
exd5 {[%emt 0:00:07]} exd5 {[%emt 0:00:00]} 9. Bxd5 {[%emt 0:00:33]} Nxd5 {
[%emt 0:00:08]} 10. Nxd5 {[%emt 0:00:11]} Qxd5 {[%emt 0:00:02]} 11. b3 {
[%emt 0:00:07]} Bc3+ {[%emt 0:00:12]} 12. Bd2 {[%emt 0:00:10]} Re8+ {[%emt 0:
00:01]} 13. Kf1 {[%emt 0:00:06]} Bg7 {[%emt 0:00:11]} 14. Be3 {[%emt 0:00:10]}
Bg4 {[%emt 0:00:08]} 15. c4 {[%emt 0:00:06]} Qc6 {[%emt 0:00:06]} 16. h3 {
[%emt 0:00:21]} Bxf3 {[%emt 0:00:01]} 17. Qxf3 {[%emt 0:00:02]} Rd8 {[%emt 0:
00:39]} 18. Rd1 {[%emt 0:00:10]} Qxf3 {[%emt 0:00:02]} 19. gxf3 {[%emt 0:00:03]
} b6 {[%emt 0:00:03]} 20. Bg5 {[%emt 0:00:01]} Rd7 {[%emt 0:00:10]} 21. Kg2 {
[%emt 0:00:02]} Nc6 {[%emt 0:00:01]} 22. Rhe1 {[%emt 0:00:01]} h6 {[%emt 0:00:
04]} 23. Bf4 {[%emt 0:00:04]} Rad8 {[%emt 0:00:06]} 24. Re3 {[%emt 0:00:07]} g5
{[%emt 0:00:15]} 25. Bg3 {[%emt 0:00:01]} Nb4 {[%emt 0:00:10]} 26. Rd2 {
[%emt 0:00:05]} Rxd3 {[%emt 0:00:34]} 27. Rexd3 {[%emt 0:00:03]} Rxd3 {[%emt 0:
00:02]} 28. Rxd3 {[%emt 0:00:10]} Nxd3 {[%emt 0:00:01]} 29. Bb8 {[%emt 0:00:04]
} a6 {[%emt 0:00:01]} 30. Bc7 {[%emt 0:00:01]} b5 {[%emt 0:00:01]} 31. cxb5 {
[%emt 0:00:03]} axb5 {[%emt 0:00:00]} 32. Bd6 {[%emt 0:00:06]} c4 {[%emt 0:00:
06]} 33. bxc4 {[%emt 0:00:07]} bxc4 {[%emt 0:00:01]} 34. Ba3 {[%emt 0:00:03]}
c3 {[%emt 0:00:12]} 35. Kf1 {[%emt 0:00:15]} c2 {[%emt 0:00:01]} 36. Ke2 {
[%emt 0:00:03]} c1=Q {[%emt 0:00:05]} 37. Bxc1 {[%emt 0:00:03]} Nxc1+ {[%emt 0:
00:01]} 38. Ke3 {[%emt 0:00:01]} Nxa2 {[%emt 0:00:01]} 39. Ke4 {[%emt 0:00:05]}
Nc3+ {[%emt 0:00:09]} 40. Kd3 {[%emt 0:00:03]} Nd5 {[%emt 0:00:01]} 41. Ke4 {
[%emt 0:00:01]} Nf4 {[%emt 0:00:01]} 42. Kf5 {[%emt 0:00:09]} Nxh3 {[%emt 0:00:
04]} 43. Kg4 {[%emt 0:00:05]} Nxf2+ {[%emt 0:00:02]} 44. Kg3 {[%emt 0:00:01]}
Bd4 {[%emt 0:00:03]} 45. f4 {[%emt 0:00:06]} gxf4+ {[%emt 0:00:03]} 46. Kxf4 {
[%emt 0:00:02]} Kg7 {[%emt 0:00:01]} 47. Kg3 {[%emt 0:00:02]} Kg6 {[%emt 0:00:
01]} 48. Kg2 {[%emt 0:00:02]} Kg5 {[%emt 0:00:01]} 49. Kg3 {[%emt 0:00:01]} f5
{[%emt 0:00:01]} 50. Kf3 {[%emt 0:00:01]} Ne4 {[%emt 0:00:02]} 51. Kg2 {
[%emt 0:00:03]} f4 {[%emt 0:00:01]} 52. Kf3 {[%emt 0:00:01]} h5 {[%emt 0:00:02]
} 53. Kg2 {[%emt 0:00:01]} Kg4 {[%emt 0:00:03]} 54. Kh2 {[%emt 0:00:02]} Be5 {
[%emt 0:00:01]} 55. Kg2 {[%emt 0:00:01]} f3+ {[%emt 0:00:01]} 56. Kg1 {[%emt 0:
00:02]} Kg3 {[%emt 0:00:10]} 57. Kh1 {[%emt 0:00:03]} Nf2+ {[%emt 0:00:06]} 58.
Kg1 {[%emt 0:00:02]} Ng4 {[%emt 0:00:04]} 59. Kh1 {[%emt 0:00:02]} Bd6 {
[%emt 0:00:01]} 60. Kg1 {[%emt 0:00:01]} f2+ {[%emt 0:00:03]} 61. Kf1 {[%emt 0:
00:09]} Nh2+ {[%emt 0:00:03]} 62. Ke2 {[%emt 0:00:02]} f1=Q+ {[%emt 0:00:01]}
63. Ke3 {[%emt 0:00:02]} Bc5+ {[%emt 0:00:01]} 64. Ke4 {[%emt 0:00:01]} Qf4+ {
[%emt 0:00:01]} 65. Kd5 {[%emt 0:00:01]} Qf5+ {[%emt 0:00:02]} 66. Kc4 {
[%emt 0:00:01]} Be7 {[%emt 0:00:00]} 67. Kc3 {[%emt 0:00:02]} Qe4 {[%emt 0:00:
01]} 68. Kd2 {[%emt 0:00:01]} Qf3 {[%emt 0:00:01]} 69. Kc2 {[%emt 0:00:01]} Qe3
{[%emt 0:00:01]} 70. Kd1 {[%emt 0:00:01]} Qf2 {[%emt 0:00:01]} 71. Kc1 {
[%emt 0:00:02]} Qe2 {[%emt 0:00:00]} 72. Kb1 {[%emt 0:00:01]} Qd2 {[%emt 0:00:
01]} 73. Ka1 {[%emt 0:00:00]} Bf6+ {[%emt 0:00:01]} 74. Kb1 {[%emt 0:00:27]}
1/2-1/2

[Event "FIDE Women World Blitz 2021"]
[Site "Warsaw"]
[Date "2021.12.30"]
[Round "11.13"]
[White "Salimova, Nurgyul"]
[Black "Dzagnidze, Nana"]
[Result "1-0"]
[ECO "D00"]
[WhiteElo "2353"]
[BlackElo "2524"]
[Annotator "ChessBase"]
[PlyCount "66"]
[EventDate "2021.12.29"]
[EventType "swiss"]
[EventCountry "POL"]
[Tiebreak "Cut1 Buchholz"]
[SourceTitle "playchess.com"]
[Source "ChessBase"]
[SourceQuality "1"]
[TimeControl "180+2"]

1. d4 {[%emt 0:00:02]} Nf6 {[%emt 0:00:01]} 2. Nc3 {[%emt 0:00:03]} d5 {
[%emt 0:00:03]} 3. Bf4 {[%emt 0:00:01]} a6 {[%emt 0:00:03]} 4. e3 {[%emt 0:00:
02]} Bf5 {[%emt 0:00:03]} 5. f3 {[%emt 0:00:13]} e6 {[%emt 0:00:02]} 6. g4 {
[%emt 0:00:04]} Bg6 {[%emt 0:00:03]} 7. h4 {[%emt 0:00:01]} h6 {[%emt 0:00:09]}
8. Bd3 {[%emt 0:00:03]} Bxd3 {[%emt 0:00:03]} 9. Qxd3 {[%emt 0:00:02]} c5 {
[%emt 0:00:00]} 10. Nh3 {[%emt 0:00:44]} Nc6 {[%emt 0:00:01]} 11. dxc5 {
[%emt 0:00:14]} Bxc5 {[%emt 0:00:03]} 12. O-O-O {[%emt 0:00:15]} Nd7 {[%emt 0:
00:34]} 13. g5 {[%emt 0:00:27]} h5 {[%emt 0:00:29]} 14. g6 {[%emt 0:00:08]} f6
{[%emt 0:00:01]} 15. e4 {[%emt 0:00:14]} d4 {[%emt 0:00:03]} 16. Na4 {[%emt 0:
00:12]} b5 {[%emt 0:00:08]} 17. Nxc5 {[%emt 0:00:35]} Nxc5 {[%emt 0:00:02]} 18.
Qe2 {[%emt 0:00:11]} Rc8 {[%emt 0:00:41]} 19. Kb1 {[%emt 0:00:02]} e5 {[%emt 0:
00:10]} 20. Bc1 {[%emt 0:00:01]} Qc7 {[%emt 0:00:34]} 21. f4 {[%emt 0:00:02]}
d3 {[%emt 0:00:02]} 22. cxd3 {[%emt 0:00:02]} Nd4 {[%emt 0:00:01]} 23. Qg2 {
[%emt 0:00:07]} Nce6 {[%emt 0:00:10]} 24. fxe5 {[%emt 0:00:01]} Qxe5 {[%emt 0:
00:01]} 25. Rhf1 {[%emt 0:00:02]} O-O {[%emt 0:00:06]} 26. Be3 {[%emt 0:00:01]}
Rfd8 {[%emt 0:00:06]} 27. Rc1 {[%emt 0:00:02]} Qd6 {[%emt 0:00:06]} 28. Rxc8 {
[%emt 0:00:02]} Rxc8 {[%emt 0:00:00]} 29. Nf4 {[%emt 0:00:02]} Nxf4 {[%emt 0:
00:03]} 30. Bxf4 {[%emt 0:00:02]} Qd7 {[%emt 0:00:01]} 31. e5 {[%emt 0:00:01]}
Ne6 {[%emt 0:00:01]} 32. Qd2 {[%emt 0:00:04]} f5 {[%emt 0:00:13]} 33. Bg5 {
[%emt 0:00:01]} Rf8 {[%emt 0:00:03]} 1-0

[Event "FIDE Women World Blitz 2021"]
[Site "Warsaw"]
[Date "2021.12.30"]
[Round "11.14"]
[White "Zatonskih, Anna"]
[Black "Majdan, Joanna"]
[Result "1/2-1/2"]
[ECO "B20"]
[WhiteElo "2394"]
[BlackElo "2325"]
[Annotator "NA"]
[PlyCount "98"]
[EventDate "2021.12.29"]
[EventType "swiss"]
[EventCountry "POL"]
[Tiebreak "Cut1 Buchholz"]
[SourceTitle "playchess.com"]
[Source "ChessBase"]
[SourceQuality "1"]
[TimeControl "180+2"]

1. e4 {[%emt 0:00:01]} c5 {[%emt 0:00:01]} 2. g3 {[%emt 0:00:00]} Nc6 {[%emt 0:
00:01]} 3. Bg2 {[%emt 0:00:01]} g6 4. d3 {[%emt 0:00:02]} Bg7 {[%emt 0:00:02]}
5. f4 {[%emt 0:00:00]} e6 {[%emt 0:00:01]} 6. Nf3 {[%emt 0:00:02]} Nge7 {
[%emt 0:00:01]} 7. c3 {[%emt 0:00:01]} O-O {[%emt 0:00:02]} 8. Be3 {[%emt 0:00:
01]} b6 {[%emt 0:00:05]} 9. Bf2 {[%emt 0:00:01]} d5 {[%emt 0:00:01]} 10. e5 {
[%emt 0:00:07]} f6 {[%emt 0:00:06]} 11. exf6 {[%emt 0:00:03]} Bxf6 {[%emt 0:00:
02]} 12. O-O {[%emt 0:00:13]} Qd6 {[%emt 0:00:04]} 13. Na3 {[%emt 0:00:43]} a6
{[%emt 0:00:02]} 14. Re1 {[%emt 0:00:01]} b5 {[%emt 0:00:02]} 15. Nc2 {[%emt 0:
00:11]} a5 {[%emt 0:00:08]} 16. d4 {[%emt 0:00:12]} c4 {[%emt 0:00:08]} 17. a3
{[%emt 0:00:22]} Rb8 {[%emt 0:00:02]} 18. Ne3 {[%emt 0:00:20]} b4 {[%emt 0:00:
02]} 19. axb4 {[%emt 0:00:01]} axb4 {[%emt 0:00:01]} 20. Ng4 {[%emt 0:00:02]}
Bg7 {[%emt 0:00:00]} 21. h4 {[%emt 0:00:17]} bxc3 {[%emt 0:00:06]} 22. bxc3 {
[%emt 0:00:00]} Rb3 {[%emt 0:00:02]} 23. Qc2 {[%emt 0:00:05]} Nf5 {[%emt 0:00:
23]} 24. Nge5 {[%emt 0:00:08]} Qc7 {[%emt 0:00:10]} 25. Nd2 {[%emt 0:00:06]}
Rb6 {[%emt 0:00:15]} 26. Reb1 {[%emt 0:00:10]} Nd6 {[%emt 0:00:24]} 27. Rxb6 {
[%emt 0:00:13]} Qxb6 {[%emt 0:00:01]} 28. Rb1 {[%emt 0:00:02]} Qc7 {[%emt 0:00:
07]} 29. Qb2 {[%emt 0:00:02]} Nxe5 {[%emt 0:00:29]} 30. dxe5 {[%emt 0:00:02]}
Nf5 {[%emt 0:00:02]} 31. Nf3 {[%emt 0:00:12]} Bd7 {[%emt 0:00:08]} 32. Qb7 {
[%emt 0:00:03]} Qd8 {[%emt 0:00:18]} 33. Nd4 {[%emt 0:00:09]} Nxd4 {[%emt 0:00:
04]} 34. Bxd4 {[%emt 0:00:01]} Bc8 {[%emt 0:00:07]} 35. Qa8 {[%emt 0:00:04]}
Re8 {[%emt 0:00:04]} 36. Rb8 {[%emt 0:00:02]} Qd7 {[%emt 0:00:03]} 37. Bh3 {
[%emt 0:00:03]} Bf8 {[%emt 0:00:05]} 38. Bg4 {[%emt 0:00:02]} h5 {[%emt 0:00:
03]} 39. Bd1 {[%emt 0:00:00]} Qc7 {[%emt 0:00:13]} 40. Ba4 {[%emt 0:00:07]} Rd8
{[%emt 0:00:01]} 41. Kg2 {[%emt 0:00:01]} Bc5 {[%emt 0:00:01]} 42. Bxc5 {
[%emt 0:00:04]} Qxc5 {[%emt 0:00:01]} 43. Bd7 {[%emt 0:00:01]} Qe3 {[%emt 0:00:
04]} 44. Bxe6+ {[%emt 0:00:04]} Kg7 {[%emt 0:00:06]} 45. Rxc8 {[%emt 0:00:04]}
Qe2+ {[%emt 0:00:01]} 46. Kg1 {[%emt 0:00:02]} Qe1+ {[%emt 0:00:02]} 47. Kg2 {
[%emt 0:00:01]} Qe2+ {[%emt 0:00:01]} 48. Kg1 {[%emt 0:00:03]} Qe1+ {[%emt 0:
00:01]} 49. Kg2 {[%emt 0:00:02]} Qe2+ {[%emt 0:00:01]} 1/2-1/2